fUSD/lending_fUSD_20260621
["ID","MTS","AMOUNT","RATE_DAILY","PERIOD"]
[425925964,1782036682000,-500.0,0.00029315,2]
[425925962,1782036682000,-500.0,0.00029315,2]
[425925963,1782036682000,-555.47,0.00029315,2]
[425925965,1782036682000,-500.0,0.00029315,2]
[425925967,1782036682000,-500.0,0.00029315,2]
[425925971,1782036682000,-500.0,0.00029315,2]
[425925968,1782036682000,-500.0,0.00029315,2]
[425925969,1782036682000,-500.0,0.00029315,2]
[425925970,1782036682000,-618.75662434,0.00029315,2]
[425925972,1782036682000,-500.0,0.00029315,2]
[425925938,1782036682000,-877.63,0.00029315,2]
[425925957,1782036682000,-671.07,0.00029315,2]
[425925946,1782036682000,-500.0,0.00029315,2]
[425925928,1782036682000,-500.0,0.00029315,2]
[425925939,1782036682000,-500.0,0.00029315,2]
[425925981,1782036682000,-500.0,0.00029315,2]
[425925925,1782036682000,-1089.19,0.00029315,2]
[425925916,1782036682000,-500.0,0.00029315,2]
[425925917,1782036682000,-500.0,0.00029315,2]
[425925918,1782036682000,-500.0,0.00029315,2]
[425925919,1782036682000,-500.0,0.00029315,2]
[425925920,1782036682000,-500.0,0.00029315,2]
[425925921,1782036682000,-549.03855289,0.00029315,2]
[425925923,1782036682000,-500.0,0.00029315,2]
[425925924,1782036682000,-500.0,0.00029315,2]
[425925922,1782036682000,-500.0,0.00029315,2]
[425925926,1782036682000,-500.0,0.00029315,2]
[425925937,1782036682000,-500.0,0.00029315,2]
[425925935,1782036682000,-500.0,0.00029315,2]
[425925931,1782036682000,-837.02,0.00029315,2]
[425925930,1782036682000,-500.0,0.00029315,2]
[425925932,1782036682000,-500.0,0.00029315,2]
[425925933,1782036682000,-500.0,0.00029315,2]
[425925929,1782036682000,-500.0,0.00029315,2]
[425925927,1782036682000,-500.0,0.00029315,2]
[425925936,1782036682000,-500.0,0.00029315,2]
[425925934,1782036682000,-500.0,0.00029315,2]
[425925941,1782036682000,-500.0,0.00029315,2]
[425925950,1782036682000,-500.0,0.00029315,2]
[425925944,1782036682000,-500.0,0.00029315,2]
[425925942,1782036682000,-541.49715247,0.00029315,2]
[425925949,1782036682000,-552.91,0.00029315,2]
[425925948,1782036682000,-500.0,0.00029315,2]
[425925973,1782036682000,-673.93,0.00029315,2]
[425925959,1782036682000,-500.0,0.00029315,2]
[425925979,1782036682000,-500.0,0.00029315,2]
[425926006,1782036682000,-693.69,0.00029315,2]
[425926011,1782036682000,-553.65,0.00029315,2]
[425926021,1782036682000,-500.0,0.00029315,2]
[425926010,1782036682000,-516.71,0.00029315,2]
[425926016,1782036682000,-500.0,0.00029315,2]
[425926019,1782036682000,-500.0,0.00029315,2]
[425926014,1782036682000,-500.0,0.00029315,2]
[425926012,1782036682000,-500.0,0.00029315,2]
[425926013,1782036682000,-1198.9,0.00029315,2]
[425926018,1782036682000,-500.0,0.00029315,2]
[425926017,1782036682000,-500.0,0.00029315,2]
[425926020,1782036682000,-845.41,0.00029315,2]
[425926015,1782036682000,-500.0,0.00029315,2]
[425926022,1782036682000,-500.0,0.00029315,2]
[425926024,1782036682000,-500.0,0.00029315,2]
[425926025,1782036682000,-170.5,0.00029315,2]
[425926026,1782036682000,-583.47,0.00029315,2]
[425926027,1782036682000,-561.51,0.00029315,2]
[425926033,1782036682000,-500.0,0.00029315,2]
[425926030,1782036682000,-500.0,0.00029315,2]
[425926031,1782036682000,-500.0,0.00029315,2]
[425926028,1782036682000,-500.0,0.00029315,2]
[425926023,1782036682000,-500.0,0.00029315,2]
[425926032,1782036682000,-500.0,0.00029315,2]
[425926029,1782036682000,-500.0,0.00029315,2]
[425926034,1782036682000,-500.0,0.00029315,2]
[425925975,1782036682000,-500.0,0.00029315,2]
[425926004,1782036682000,-500.0,0.00029315,2]
[425926005,1782036682000,-500.0,0.00029315,2]
[425926035,1782036682000,-500.0,0.00029315,2]
[425926008,1782036682000,-500.0,0.00029315,2]
[425925983,1782036682000,-925.07,0.00029315,2]
[425925976,1782036682000,-500.0,0.00029315,2]
[425925980,1782036682000,-500.0,0.00029315,2]
[425925974,1782036682000,-605.32,0.00029315,2]
[425925984,1782036682000,-500.0,0.00029315,2]
[425925982,1782036682000,-500.0,0.00029315,2]
[425925978,1782036682000,-500.0,0.00029315,2]
[425926007,1782036682000,-500.0,0.00029315,2]
[425925996,1782036682000,-500.0,0.00029315,2]
[425925992,1782036682000,-500.0,0.00029315,2]
[425925985,1782036682000,-500.0,0.00029315,2]
[425925988,1782036682000,-500.0,0.00029315,2]
[425925991,1782036682000,-512.62,0.00029315,2]
[425925986,1782036682000,-500.0,0.00029315,2]
[425925994,1782036682000,-369.05397378,0.00029315,2]
[425925987,1782036682000,-682.66,0.00029315,2]
[425926003,1782036682000,-500.0,0.00029315,2]
[425926002,1782036682000,-641.52,0.00029315,2]
[425925998,1782036682000,-500.0,0.00029315,2]
[425926001,1782036682000,-694.81,0.00029315,2]
[425926000,1782036682000,-687.18,0.00029315,2]
[425926009,1782036682000,-599.45,0.00029315,2]
[425925997,1782036682000,-500.0,0.00029315,2]
[425925995,1782036682000,-500.0,0.00029315,2]
[425925993,1782036682000,-500.0,0.00029315,2]
[425925990,1782036682000,-500.0,0.00029315,2]
[425925989,1782036682000,-3192.54,0.00029315,2]
[425925999,1782036682000,-500.0,0.00029315,2]
[425926071,1782036683000,-653.61,0.00029315,2]
[425926077,1782036683000,-2356.71,0.00029315,2]
[425926079,1782036683000,-1253.56,0.00029315,2]
[425926073,1782036683000,-500.0,0.00029315,2]
[425926075,1782036683000,-503.72,0.00029315,2]
[425926074,1782036683000,-500.0,0.00029315,2]
[425926078,1782036683000,-500.0,0.00029315,2]
[425926062,1782036683000,-500.0,0.00029315,2]
[425926060,1782036683000,-770.0,0.00029315,2]
[425926067,1782036683000,-500.0,0.00029315,2]
[425926076,1782036683000,-500.0,0.00029315,2]
[425926072,1782036683000,-500.0,0.00029315,2]
[425926092,1782036683000,-598.45,0.00029315,2]
[425926088,1782036683000,-588.53062059,0.00029315,2]
[425926081,1782036683000,-500.0,0.00029315,2]
[425926080,1782036683000,-500.0,0.00029315,2]
[425926083,1782036683000,-500.0,0.00029315,2]
[425926084,1782036683000,-500.0,0.00029315,2]
[425926087,1782036683000,-500.0,0.00029315,2]
[425926086,1782036683000,-763.08,0.00029315,2]
[425926082,1782036683000,-910.29,0.00029315,2]
[425926085,1782036683000,-500.0,0.00029315,2]
[425926089,1782036683000,-500.0,0.00029315,2]
[425926091,1782036683000,-417.33417613,0.00029315,2]
[425926090,1782036683000,-500.0,0.00029315,2]
[425926063,1782036683000,-167.11747935,0.00029315,2]
[425926070,1782036683000,-638.76,0.00029315,2]
[425926061,1782036683000,-500.0,0.00029315,2]
[425926056,1782036683000,-1360.88,0.00029315,2]
[425926068,1782036683000,-684.54,0.00029315,2]
[425926036,1782036683000,-500.0,0.00029315,2]
[425926038,1782036683000,-500.0,0.00029315,2]
[425926037,1782036683000,-686.88,0.00029315,2]
[425926039,1782036683000,-500.0,0.00029315,2]
[425926040,1782036683000,-768.15,0.00029315,2]
[425926041,1782036683000,-500.0,0.00029315,2]
[425926043,1782036683000,-519.87,0.00029315,2]
[425926044,1782036683000,-500.0,0.00029315,2]
[425926045,1782036683000,-500.0,0.00029315,2]
[425926042,1782036683000,-500.0,0.00029315,2]
[425926052,1782036683000,-592.75,0.00029315,2]
[425926049,1782036683000,-500.0,0.00029315,2]
[425926064,1782036683000,-500.0,0.00029315,2]
[425926053,1782036683000,-161.00287,0.00029315,2]
[425926054,1782036683000,-500.0,0.00029315,2]
[425926057,1782036683000,-500.0,0.00029315,2]
[425926050,1782036683000,-500.0,0.00029315,2]
[425926047,1782036683000,-500.0,0.00029315,2]
[425926055,1782036683000,-500.0,0.00029315,2]
[425926046,1782036683000,-635.0,0.00029315,2]
[425926051,1782036683000,-500.0,0.00029315,2]
[425926059,1782036683000,-1235.09,0.00029315,2]
[425926066,1782036683000,-500.0,0.00029315,2]
[425926065,1782036683000,-500.0,0.00029315,2]
[425926069,1782036683000,-779.55,0.00029315,2]
[425926058,1782036683000,-500.0,0.00029315,2]
[425926048,1782036683000,-500.0,0.00029315,2]
[425926095,1782036683000,-500.0,0.00029315,2]
[425926093,1782036683000,-974.4,0.00029315,2]
[425926102,1782036683000,-1097.22,0.00029315,2]
[425926126,1782036683000,-500.0,0.00029315,2]
[425926129,1782036683000,-1933.49,0.00029315,2]
[425926131,1782036683000,-5268.44,0.00029315,2]
[425926140,1782036683000,-4809.24,0.00029315,2]
[425926136,1782036683000,-935.79,0.00029315,2]
[425926130,1782036683000,-834.65,0.00029315,2]
[425926135,1782036683000,-4806.58,0.00029315,2]
[425926134,1782036683000,-1119.73,0.00029315,2]
[425926138,1782036683000,-951.62,0.00029315,2]
[425926139,1782036683000,-500.0,0.00029315,2]
[425926141,1782036683000,-648.35,0.00029315,2]
[425926137,1782036683000,-500.0,0.00029315,2]
[425926127,1782036683000,-3216.01,0.00029315,2]
[425926132,1782036683000,-291.36611426,0.00029315,2]
[425926153,1782036683000,-214.78706498,0.00029315,2]
[425926143,1782036683000,-500.0,0.00029315,2]
[425926144,1782036683000,-500.0,0.00029315,2]
[425926149,1782036683000,-500.0,0.00029315,2]
[425926145,1782036683000,-500.0,0.00029315,2]
[425926146,1782036683000,-500.0,0.00029315,2]
[425926148,1782036683000,-643.8,0.00029315,2]
[425926147,1782036683000,-500.0,0.00029315,2]
[425926152,1782036683000,-500.0,0.00029315,2]
[425926151,1782036683000,-500.0,0.00029315,2]
[425926150,1782036683000,-500.0,0.00029315,2]
[425926096,1782036683000,-500.0,0.00029315,2]
[425926142,1782036683000,-4567.55,0.00029315,2]
[425926128,1782036683000,-969.73,0.00029315,2]
[425926133,1782036683000,-524.63,0.00029315,2]
[425926122,1782036683000,-3565.25,0.00029315,2]
[425926100,1782036683000,-500.0,0.00029315,2]
[425926125,1782036683000,-500.0,0.00029315,2]
[425926094,1782036683000,-500.0,0.00029315,2]
[425926099,1782036683000,-500.0,0.00029315,2]
[425926097,1782036683000,-947.58,0.00029315,2]
[425926098,1782036683000,-1321.35,0.00029315,2]
[425926101,1782036683000,-509.77,0.00029315,2]
[425926103,1782036683000,-500.0,0.00029315,2]
[425926104,1782036683000,-500.0,0.00029315,2]
[425926107,1782036683000,-500.0,0.00029315,2]
[425926105,1782036683000,-500.0,0.00029315,2]
[425926108,1782036683000,-500.0,0.00029315,2]
[425926109,1782036683000,-500.0,0.00029315,2]
[425926114,1782036683000,-500.0,0.00029315,2]
[425926106,1782036683000,-500.0,0.00029315,2]
[425926120,1782036683000,-675.07,0.00029315,2]
[425926123,1782036683000,-849.95,0.00029315,2]
[425926111,1782036683000,-500.0,0.00029315,2]
[425926121,1782036683000,-500.0,0.00029315,2]
[425926118,1782036683000,-500.0,0.00029315,2]
[425926117,1782036683000,-1273.89,0.00029315,2]
[425926119,1782036683000,-956.37,0.00029315,2]
[425926124,1782036683000,-559.83,0.00029315,2]
[425926113,1782036683000,-500.0,0.00029315,2]
[425926112,1782036683000,-500.0,0.00029315,2]
[425926115,1782036683000,-500.0,0.00029315,2]
[425926110,1782036683000,-500.0,0.00029315,2]
[425926116,1782036683000,-500.0,0.00029315,2]
[425926198,1782036684000,-500.0,0.00029315,2]
[425926195,1782036684000,-500.0,0.00029315,2]
[425926202,1782036684000,-500.0,0.00029315,2]
[425926191,1782036684000,-547.39,0.00029315,2]
[425926199,1782036684000,-782.44,0.00029315,2]
[425926187,1782036684000,-500.0,0.00029315,2]
[425926192,1782036684000,-602.27,0.00029315,2]
[425926188,1782036684000,-500.0,0.00029315,2]
[425926190,1782036684000,-500.0,0.00029315,2]
[425926186,1782036684000,-500.0,0.00029315,2]
[425926196,1782036684000,-247.15,0.00029315,2]
[425926203,1782036684000,-4513.58,0.00029315,2]
[425926194,1782036684000,-547.19,0.00029315,2]
[425926214,1782036684000,-5549.57,0.00029315,2]
[425926193,1782036684000,-637.81,0.00029315,2]
[425926200,1782036684000,-8596.43,0.00029315,2]
[425926197,1782036684000,-500.0,0.00029315,2]
[425926204,1782036684000,-741.55,0.00029315,2]
[425926207,1782036684000,-4904.56,0.00029315,2]
[425926205,1782036684000,-589.86,0.00029315,2]
[425926210,1782036684000,-4234.92,0.00029315,2]
[425926211,1782036684000,-500.0,0.00029315,2]
[425926206,1782036684000,-8344.59,0.00029315,2]
[425926213,1782036684000,-500.0,0.00029315,2]
[425926215,1782036684000,-4142.16,0.00029315,2]
[425926216,1782036684000,-500.0,0.00029315,2]
[425926189,1782036684000,-500.0,0.00029315,2]
[425926212,1782036684000,-500.0,0.00029315,2]
[425926183,1782036684000,-500.0,0.00029315,2]
[425926156,1782036684000,-835.73,0.00029315,2]
[425926185,1782036684000,-500.0,0.00029315,2]
[425926154,1782036684000,-500.0,0.00029315,2]
[425926157,1782036684000,-500.0,0.00029315,2]
[425926162,1782036684000,-500.0,0.00029315,2]
[425926161,1782036684000,-500.0,0.00029315,2]
[425926158,1782036684000,-500.0,0.00029315,2]
[425926164,1782036684000,-500.0,0.00029315,2]
[425926163,1782036684000,-500.0,0.00029315,2]
[425926160,1782036684000,-2467.13,0.00029315,2]
[425926159,1782036684000,-918.31,0.00029315,2]
[425926155,1782036684000,-500.0,0.00029315,2]
[425926165,1782036684000,-500.0,0.00029315,2]
[425926167,1782036684000,-500.0,0.00029315,2]
[425926178,1782036684000,-234.47,0.00029315,2]
[425926184,1782036684000,-500.78,0.00029315,2]
[425926177,1782036684000,-500.0,0.00029315,2]
[425926170,1782036684000,-500.0,0.00029315,2]
[425926169,1782036684000,-500.0,0.00029315,2]
[425926171,1782036684000,-500.0,0.00029315,2]
[425926168,1782036684000,-500.0,0.00029315,2]
[425926174,1782036684000,-311.71,0.00029315,2]
[425926173,1782036684000,-500.0,0.00029315,2]
[425926175,1782036684000,-6132.74,0.00029315,2]
[425926176,1782036684000,-500.0,0.00029315,2]
[425926172,1782036684000,-415.69,0.00029315,2]
[425926179,1782036684000,-500.0,0.00029315,2]
[425926180,1782036684000,-500.0,0.00029315,2]
[425926182,1782036684000,-500.0,0.00029315,2]
[425926181,1782036684000,-500.0,0.00029315,2]
[425926166,1782036684000,-500.0,0.00029315,2]
[425926208,1782036684000,-518.81,0.00029315,2]
[425926201,1782036684000,-500.0,0.00029315,2]
[425926228,1782036684000,-500.0,0.00029315,2]
[425926252,1782036684000,-500.0,0.00029315,2]
[425926246,1782036684000,-398.34860027,0.00029315,2]
[425926245,1782036684000,-3641.08,0.00029315,2]
[425926250,1782036684000,-8686.83,0.00029315,2]
[425926255,1782036684000,-500.0,0.00029315,2]
[425926256,1782036684000,-9537.38,0.00029315,2]
[425926266,1782036684000,-574.59,0.00029315,2]
[425926257,1782036684000,-9148.39,0.00029315,2]
[425926261,1782036684000,-793.21,0.00029315,2]
[425926258,1782036684000,-762.22,0.00029315,2]
[425926263,1782036684000,-7006.76,0.00029315,2]
[425926265,1782036684000,-904.85,0.00029315,2]
[425926260,1782036684000,-4116.89,0.00029315,2]
[425926249,1782036684000,-500.0,0.00029315,2]
[425926259,1782036684000,-1130.75,0.00029315,2]
[425926264,1782036684000,-3690.26,0.00029315,2]
[425926268,1782036684000,-513.04,0.00029315,2]
[425926278,1782036684000,-353.6216639,0.00029315,2]
[425926269,1782036684000,-2754.08,0.00029315,2]
[425926270,1782036684000,-500.0,0.00029315,2]
[425926272,1782036684000,-500.0,0.00029315,2]
[425926209,1782036684000,-544.03,0.00029315,2]
[425926271,1782036684000,-6967.46,0.00029315,2]
[425926267,1782036684000,-694.24,0.00029315,2]
[425926276,1782036684000,-913.0,0.00029315,2]
[425926274,1782036684000,-673.1,0.00029315,2]
[425926275,1782036684000,-58770.661065,0.00029315,2]
[425926277,1782036684000,-500.0,0.00029315,2]
[425926262,1782036684000,-3648.64,0.00029315,2]
[425926251,1782036684000,-167.7276054,0.00029315,2]
[425926273,1782036684000,-4469.05,0.00029315,2]
[425926247,1782036684000,-1000.0,0.00029315,2]
[425926248,1782036684000,-500.0,0.00029315,2]
[425926218,1782036684000,-529.95,0.00029315,2]
[425926226,1782036684000,-508.58,0.00029315,2]
[425926220,1782036684000,-500.0,0.00029315,2]
[425926223,1782036684000,-500.0,0.00029315,2]
[425926217,1782036684000,-11591.31,0.00029315,2]
[425926224,1782036684000,-560.95,0.00029315,2]
[425926225,1782036684000,-500.0,0.00029315,2]
[425926219,1782036684000,-347.62816374,0.00029315,2]
[425926221,1782036684000,-737.59,0.00029315,2]
[425926222,1782036684000,-1121.32,0.00029315,2]
[425926229,1782036684000,-500.0,0.00029315,2]
[425926231,1782036684000,-503.69,0.00029315,2]
[425926235,1782036684000,-7434.82,0.00029315,2]
[425926227,1782036684000,-3462.02,0.00029315,2]
[425926236,1782036684000,-500.0,0.00029315,2]
[425926233,1782036684000,-4407.46,0.00029315,2]
[425926242,1782036684000,-6191.78,0.00029315,2]
[425926243,1782036684000,-504.3,0.00029315,2]
[425926253,1782036684000,-15685.64,0.00029315,2]
[425926244,1782036684000,-8802.4,0.00029315,2]
[425926239,1782036684000,-614.43,0.00029315,2]
[425926254,1782036684000,-3642.96,0.00029315,2]
[425926237,1782036684000,-752.17,0.00029315,2]
[425926241,1782036684000,-500.0,0.00029315,2]
[425926240,1782036684000,-500.0,0.00029315,2]
[425926234,1782036684000,-4893.3,0.00029315,2]
[425926230,1782036684000,-500.0,0.00029315,2]
[425926238,1782036684000,-4920.34,0.00029315,2]
[425926232,1782036684000,-500.0,0.00029315,2]
[425926312,1782036685000,-2112.512751,0.00029479,7]
[425926306,1782036685000,-1567.34072151,0.00029479,30]
[425926315,1782036685000,-3000.0,0.00029533,3]
[425926311,1782036685000,-2112.512751,0.00029479,7]
[425926310,1782036685000,-2112.512751,0.00029479,7]
[425926314,1782036685000,-3373.51,0.000295,2]
[425926307,1782036685000,-150.0,0.00029479,30]
[425926309,1782036685000,-2112.512751,0.00029479,7]
[425926308,1782036685000,-1088.96950673,0.00029479,30]
[425926313,1782036685000,-3922.44897561,0.00029489,2]
[425926332,1782036685000,-500.0,0.00029589,2]
[425926316,1782036685000,-150.0,0.00029534,2]
[425926319,1782036685000,-500.0,0.00029589,2]
[425926318,1782036685000,-990.59026533,0.0002957,2]
[425926320,1782036685000,-500.0,0.00029589,2]
[425926321,1782036685000,-500.0,0.00029589,2]
[425926322,1782036685000,-500.0,0.00029589,2]
[425926331,1782036685000,-500.0,0.00029589,2]
[425926327,1782036685000,-500.0,0.00029589,2]
[425926323,1782036685000,-500.0,0.00029589,2]
[425926305,1782036685000,-150.0,0.00029479,30]
[425926317,1782036685000,-700.0,0.0002957,2]
[425926300,1782036685000,-1000.0,0.00029412,2]
[425926289,1782036685000,-578.58,0.00029315,2]
[425926299,1782036685000,-1000.0,0.00029412,2]
[425926279,1782036685000,-500.0,0.00029315,2]
[425926292,1782036685000,-338.45475444,0.00029315,2]
[425926291,1782036685000,-5168.02,0.00029315,2]
[425926281,1782036685000,-2177.43,0.00029315,2]
[425926280,1782036685000,-2750.97,0.00029315,2]
[425926286,1782036685000,-500.0,0.00029315,2]
[425926283,1782036685000,-500.0,0.00029315,2]
[425926290,1782036685000,-2245.52,0.00029315,2]
[425926288,1782036685000,-500.0,0.00029315,2]
[425926287,1782036685000,-3409.76,0.00029315,2]
[425926303,1782036685000,-573.66,0.00029476,2]
[425926284,1782036685000,-6610.19,0.00029315,2]
[425926285,1782036685000,-10370.49,0.00029315,2]
[425926294,1782036685000,-553.30691989,0.00029315,2]
[425926297,1782036685000,-500.0,0.00029315,2]
[425926304,1782036685000,-644.31,0.00029476,2]
[425926295,1782036685000,-1820.63,0.00029315,2]
[425926293,1782036685000,-1012.47,0.00029315,2]
[425926296,1782036685000,-500.0,0.00029315,2]
[425926298,1782036685000,-150.0,0.00029315,2]
[425926301,1782036685000,-1000.0,0.00029412,2]
[425926302,1782036685000,-1847.06,0.00029412,2]
[425926282,1782036685000,-7308.09,0.00029315,2]
[425926326,1782036685000,-500.0,0.00029589,2]
[425926325,1782036685000,-500.0,0.00029589,2]
[425926324,1782036685000,-500.0,0.00029589,2]
[425926347,1782036685000,-500.0,0.00029589,2]
[425926369,1782036685000,-500.0,0.00029589,2]
[425926359,1782036685000,-500.0,0.00029589,2]
[425926361,1782036685000,-877.63,0.00029589,2]
[425926360,1782036685000,-500.0,0.00029589,2]
[425926358,1782036685000,-500.0,0.00029589,2]
[425926362,1782036685000,-500.0,0.00029589,2]
[425926365,1782036685000,-330.92275878,0.00029589,2]
[425926366,1782036685000,-500.0,0.00029589,2]
[425926367,1782036685000,-500.0,0.00029589,2]
[425926363,1782036685000,-500.0,0.00029589,2]
[425926364,1782036685000,-500.0,0.00029589,2]
[425926370,1782036685000,-552.91,0.00029589,2]
[425926372,1782036685000,-688.76,0.00029589,2]
[425926377,1782036685000,-671.07,0.00029589,2]
[425926374,1782036685000,-500.0,0.00029589,2]
[425926371,1782036685000,-500.0,0.00029589,2]
[425926373,1782036685000,-500.0,0.00029589,2]
[425926375,1782036685000,-500.0,0.00029589,2]
[425926376,1782036685000,-1101.32,0.00029589,2]
[425926328,1782036685000,-662.54,0.00029589,2]
[425926353,1782036685000,-500.0,0.00029589,2]
[425926354,1782036685000,-837.02,0.00029589,2]
[425926368,1782036685000,-500.0,0.00029589,2]
[425926357,1782036685000,-500.0,0.00029589,2]
[425926330,1782036685000,-500.0,0.00029589,2]
[425926351,1782036685000,-500.0,0.00029589,2]
[425926329,1782036685000,-500.0,0.00029589,2]
[425926334,1782036685000,-1087.51,0.00029589,2]
[425926344,1782036685000,-500.0,0.00029589,2]
[425926345,1782036685000,-500.0,0.00029589,2]
[425926335,1782036685000,-543.45,0.00029589,2]
[425926338,1782036685000,-500.0,0.00029589,2]
[425926336,1782036685000,-311.76,0.00029589,2]
[425926342,1782036685000,-500.0,0.00029589,2]
[425926341,1782036685000,-500.0,0.00029589,2]
[425926333,1782036685000,-500.0,0.00029589,2]
[425926352,1782036685000,-500.0,0.00029589,2]
[425926356,1782036685000,-500.0,0.00029589,2]
[425926340,1782036685000,-500.0,0.00029589,2]
[425926349,1782036685000,-500.0,0.00029589,2]
[425926350,1782036685000,-500.0,0.00029589,2]
[425926348,1782036685000,-1089.19,0.00029589,2]
[425926355,1782036685000,-500.0,0.00029589,2]
[425926346,1782036685000,-500.0,0.00029589,2]
[425926339,1782036685000,-550.18,0.00029589,2]
[425926343,1782036685000,-500.0,0.00029589,2]
[425926337,1782036685000,-500.0,0.00029589,2]
[425926415,1782036686000,-500.0,0.00029589,2]
[425926422,1782036686000,-500.0,0.00029589,2]
[425926418,1782036686000,-694.81,0.00029589,2]
[425926413,1782036686000,-594.78753075,0.00029589,2]
[425926427,1782036686000,-516.71,0.00029589,2]
[425926416,1782036686000,-500.0,0.00029589,2]
[425926411,1782036686000,-403.87567697,0.00029589,2]
[425926414,1782036686000,-500.0,0.00029589,2]
[425926410,1782036686000,-512.62,0.00029589,2]
[425926409,1782036686000,-500.0,0.00029589,2]
[425926421,1782036686000,-500.0,0.00029589,2]
[425926412,1782036686000,-500.0,0.00029589,2]
[425926429,1782036686000,-500.0,0.00029589,2]
[425926432,1782036686000,-318.87297605,0.00029589,2]
[425926423,1782036686000,-693.69,0.00029589,2]
[425926424,1782036686000,-500.0,0.00029589,2]
[425926428,1782036686000,-553.65,0.00029589,2]
[425926420,1782036686000,-500.0,0.00029589,2]
[425926419,1782036686000,-641.52,0.00029589,2]
[425926426,1782036686000,-599.45,0.00029589,2]
[425926440,1782036686000,-561.51,0.00029589,2]
[425926431,1782036686000,-467.95,0.00029589,2]
[425926441,1782036686000,-248.64203172,0.00029589,2]
[425926430,1782036686000,-1198.9,0.00029589,2]
[425926438,1782036686000,-500.0,0.00029589,2]
[425926434,1782036686000,-500.0,0.00029589,2]
[425926405,1782036686000,-500.0,0.00029589,2]
[425926425,1782036686000,-500.0,0.00029589,2]
[425926408,1782036686000,-500.0,0.00029589,2]
[425926381,1782036686000,-835.47,0.00029589,2]
[425926417,1782036686000,-687.18,0.00029589,2]
[425926378,1782036686000,-500.0,0.00029589,2]
[425926379,1782036686000,-500.0,0.00029589,2]
[425926380,1782036686000,-500.0,0.00029589,2]
[425926382,1782036686000,-500.0,0.00029589,2]
[425926384,1782036686000,-500.0,0.00029589,2]
[425926392,1782036686000,-673.93,0.00029589,2]
[425926383,1782036686000,-555.47,0.00029589,2]
[425926385,1782036686000,-500.0,0.00029589,2]
[425926386,1782036686000,-500.0,0.00029589,2]
[425926389,1782036686000,-500.0,0.00029589,2]
[425926391,1782036686000,-500.0,0.00029589,2]
[425926388,1782036686000,-500.0,0.00029589,2]
[425926387,1782036686000,-500.0,0.00029589,2]
[425926390,1782036686000,-500.0,0.00029589,2]
[425926395,1782036686000,-500.0,0.00029589,2]
[425926396,1782036686000,-500.0,0.00029589,2]
[425926393,1782036686000,-605.32,0.00029589,2]
[425926398,1782036686000,-500.0,0.00029589,2]
[425926401,1782036686000,-500.0,0.00029589,2]
[425926399,1782036686000,-353.56877456,0.00029589,2]
[425926402,1782036686000,-925.07,0.00029589,2]
[425926400,1782036686000,-293.48846219,0.00029589,2]